[Event "Titled Tuesday Blitz December 06 Late 2022"]
[White "Domingo Nunez, Ruben"]
[Black "Ward, Ieuan C"]
[WhiteFideId "22245570"]
[BlackFideId "406627"]
[WhiteElo "2406"]
[BlackElo "2318"]
[Result "1-0"]
[Round "03"]
[TimeControl "180+1"]
[Date "2022.12.07"]
[WhiteClock "0:00:28"]
[BlackClock "0:00:02"]

1. b3 {[%clk 0:03:00]}  d5 {[%clk 0:02:58]} 2. Bb2 {[%clk 0:03:01]}  Nf6 {[%clk 0:02:59]} 3. Nf3 {[%clk 0:03:02]}  e6 {[%clk 0:02:59]} 4. e3 {[%clk 0:03:02]}  Be7 {[%clk 0:03:00]} 5. Be2 {[%clk 0:03:03]}  O-O {[%clk 0:03:00]} 6. O-O {[%clk 0:03:04]}  b6 {[%clk 0:03:01]} 7. c4 {[%clk 0:03:05]}  Bb7 {[%clk 0:03:01]} 8. Nc3 {[%clk 0:03:06]}  Nbd7 {[%clk 0:03:02]} 9. Rc1 {[%clk 0:03:06]}  Rc8 {[%clk 0:03:02]} 10. d4 {[%clk 0:03:07]}  a6 {[%clk 0:03:01]} 11. Na4 {[%clk 0:03:06]}  dxc4 {[%clk 0:03:00]} 12. bxc4 {[%clk 0:03:06]}  c5 {[%clk 0:03:00]} 13. Qb3 {[%clk 0:03:03]}  cxd4 {[%clk 0:02:54]} 14. exd4 {[%clk 0:03:03]}  Rb8 {[%clk 0:02:46]} 15. Rfd1 {[%clk 0:03:03]}  b5 {[%clk 0:02:24]} 16. cxb5 {[%clk 0:03:02]}  axb5 {[%clk 0:02:22]} 17. Nc3 {[%clk 0:03:02]}  b4 {[%clk 0:02:17]} 18. Na4 {[%clk 0:03:00]}  Bd5 {[%clk 0:02:06]} 19. Bc4 {[%clk 0:03:00]}  Bxf3 {[%clk 0:02:04]} 20. Qxf3 {[%clk 0:03:00]}  Nb6 {[%clk 0:02:02]} 21. Nxb6 {[%clk 0:02:56]}  Qxb6 {[%clk 0:02:03]} 22. d5 {[%clk 0:02:22]}  exd5 {[%clk 0:02:00]} 23. Bxd5 {[%clk 0:02:09]}  Nxd5 {[%clk 0:01:56]} 24. Rxd5 {[%clk 0:02:10]}  Bf6 {[%clk 0:01:50]} 25. Bxf6 {[%clk 0:02:01]}  Qxf6 {[%clk 0:01:50]} 26. Qxf6 {[%clk 0:02:01]}  gxf6 {[%clk 0:01:51]} 27. Rb1 {[%clk 0:02:01]}  Rb6 {[%clk 0:01:22]} 28. g3 {[%clk 0:02:01]}  Ra8 {[%clk 0:01:21]} 29. Rd2 {[%clk 0:01:57]}  Rba6 {[%clk 0:01:19]} 30. Rxb4 {[%clk 0:01:57]}  Rxa2 {[%clk 0:01:19]} 31. Rd6 {[%clk 0:01:56]}  R2a6 {[%clk 0:01:16]} 32. Rd7 {[%clk 0:01:53]}  R6a7 {[%clk 0:01:14]} 33. Rg4+ {[%clk 0:01:49]}  Kh8 {[%clk 0:01:04]} 34. Rdd4 {[%clk 0:01:47]}  Rg8 {[%clk 0:00:56]} 35. Rgf4 {[%clk 0:01:46]}  Rg6 {[%clk 0:00:51]} 36. Rd8+ {[%clk 0:01:43]}  Kg7 {[%clk 0:00:51]} 37. h4 {[%clk 0:01:43]}  Ra5 {[%clk 0:00:47]} 38. Rd7 {[%clk 0:01:13]}  Re5 {[%clk 0:00:44]} 39. Kg2 {[%clk 0:01:12]}  h5 {[%clk 0:00:42]} 40. Rb4 {[%clk 0:01:07]}  f5 {[%clk 0:00:35]} 41. Rd8 {[%clk 0:01:05]}  Rf6 {[%clk 0:00:31]} 42. Rbb8 {[%clk 0:01:02]}  Rh6 {[%clk 0:00:28]} 43. Rg8+ {[%clk 0:01:01]}  Kf6 {[%clk 0:00:28]} 44. Rg5 {[%clk 0:01:00]}  Re4 {[%clk 0:00:17]} 45. Rb5 {[%clk 0:00:53]}  f4 {[%clk 0:00:16]} 46. Kf3 {[%clk 0:00:46]}  Re1 {[%clk 0:00:13]} 47. Kxf4 {[%clk 0:00:44]}  Ke7 {[%clk 0:00:12]} 48. Rb7+ {[%clk 0:00:44]}  Kf8 {[%clk 0:00:10]} 49. Rb8+ {[%clk 0:00:42]}  Ke7 {[%clk 0:00:10]} 50. Rf5 {[%clk 0:00:42]}  Re2 {[%clk 0:00:06]} 51. Kf3 {[%clk 0:00:40]}  Ke6 {[%clk 0:00:04]} 52. Ra5 {[%clk 0:00:30]}  f6 {[%clk 0:00:02]} 53. Kxe2 {[%clk 0:00:28]} 1-0


[Site "https://www.chess.com"]

[Event "Titled Tuesday Blitz December 06 Late 2022"]
[White "Droin, Augustin"]
[Black "Curtis, John"]
[WhiteFideId "45105987"]
[BlackFideId "3200256"]
[WhiteElo "2316"]
[BlackElo "2203"]
[Result "1-0"]
[Round "03"]
[TimeControl "180+1"]
[Date "2022.12.07"]
[WhiteClock "0:02:10"]
[BlackClock "0:00:25"]

1. e4 {[%clk 0:03:00]}  c5 {[%clk 0:02:56]} 2. Nf3 {[%clk 0:03:01]}  d6 {[%clk 0:02:57]} 3. d4 {[%clk 0:03:01]}  cxd4 {[%clk 0:02:57]} 4. Nxd4 {[%clk 0:03:02]}  Nf6 {[%clk 0:02:57]} 5. Nc3 {[%clk 0:03:02]}  a6 {[%clk 0:02:55]} 6. Bg5 {[%clk 0:03:03]}  e6 {[%clk 0:02:53]} 7. f4 {[%clk 0:02:47]}  h6 {[%clk 0:02:51]} 8. Bh4 {[%clk 0:02:47]}  g5 {[%clk 0:02:47]} 9. fxg5 {[%clk 0:02:43]}  Nh7 {[%clk 0:02:47]} 10. Qd2 {[%clk 0:02:38]}  hxg5 {[%clk 0:02:42]} 11. Bg3 {[%clk 0:02:38]}  b5 {[%clk 0:02:24]} 12. O-O-O {[%clk 0:02:33]}  Bb7 {[%clk 0:02:19]} 13. a3 {[%clk 0:02:29]}  Nf6 {[%clk 0:02:12]} 14. Bxb5+ {[%clk 0:02:27]}  axb5 {[%clk 0:02:09]} 15. Ndxb5 {[%clk 0:02:28]}  e5 {[%clk 0:01:51]} 16. Bxe5 {[%clk 0:02:26]}  Nc6 {[%clk 0:01:34]} 17. Bxf6 {[%clk 0:02:25]}  Qxf6 {[%clk 0:01:32]} 18. Nd5 {[%clk 0:02:26]}  Qe5 {[%clk 0:01:27]} 19. Ndc7+ {[%clk 0:02:23]}  Kd7 {[%clk 0:01:21]} 20. Rhf1 {[%clk 0:02:21]}  Rh7 {[%clk 0:01:13]} 21. Rf5 {[%clk 0:02:19]}  Qe7 {[%clk 0:01:01]} 22. Nd5 {[%clk 0:02:17]}  Qd8 {[%clk 0:00:59]} 23. Nf6+ {[%clk 0:02:17]}  Kc8 {[%clk 0:00:51]} 24. Nxh7 {[%clk 0:02:18]}  Be7 {[%clk 0:00:46]} 25. Nxd6+ {[%clk 0:02:17]}  Qxd6 {[%clk 0:00:41]} 26. Qxd6 {[%clk 0:02:18]}  Bxd6 {[%clk 0:00:41]} 27. Rxd6 {[%clk 0:02:19]}  Ra4 {[%clk 0:00:41]} 28. Nxg5 {[%clk 0:02:16]}  Kc7 {[%clk 0:00:39]} 29. Rdf6 {[%clk 0:02:14]}  Nd8 {[%clk 0:00:37]} 30. Nxf7 {[%clk 0:02:14]}  Bxe4 {[%clk 0:00:33]} 31. Rc5+ {[%clk 0:02:14]}  Kd7 {[%clk 0:00:28]} 32. Nxd8 {[%clk 0:02:11]}  Kxd8 {[%clk 0:00:28]} 33. h4 {[%clk 0:02:11]}  Ke7 {[%clk 0:00:27]} 34. Rf4 {[%clk 0:02:11]}  Bxc2 {[%clk 0:00:25]} 35. Rxa4 {[%clk 0:02:10]}  Bxa4 {[%clk 0:00:25]} 36. h5 {[%clk 0:02:10]}  Bd1 {[%clk 0:00:25]} 37. Kxd1 {[%clk 0:02:10]} 1-0


[Site "https://www.chess.com"]

[Event "Titled Tuesday Blitz December 06 Late 2022"]
[White "Dylag, Emilia"]
[Black "Erdogmus, Yagiz Kaan"]
[WhiteFideId "21805172"]
[BlackFideId "44599790"]
[WhiteElo "1878"]
[BlackElo "2353"]
[Result "0-1"]
[Round "03"]
[TimeControl "180+1"]
[Date "2022.12.07"]
[WhiteClock "0:00:04"]
[BlackClock "0:00:18"]

1. d4 {[%clk 0:03:00]}  d5 {[%clk 0:02:57]} 2. c4 {[%clk 0:03:01]}  c6 {[%clk 0:02:54]} 3. Nf3 {[%clk 0:03:00]}  Nf6 {[%clk 0:02:54]} 4. Nc3 {[%clk 0:03:00]}  e6 {[%clk 0:02:54]} 5. g3 {[%clk 0:03:00]}  dxc4 {[%clk 0:02:54]} 6. Bg2 {[%clk 0:02:58]}  Nbd7 {[%clk 0:02:52]} 7. O-O {[%clk 0:02:58]}  b5 {[%clk 0:02:46]} 8. a4 {[%clk 0:02:55]}  b4 {[%clk 0:02:41]} 9. Nb1 {[%clk 0:02:55]}  a5 {[%clk 0:02:35]} 10. Qc2 {[%clk 0:02:54]}  Ba6 {[%clk 0:02:33]} 11. Ne5 {[%clk 0:02:53]}  Nxe5 {[%clk 0:02:31]} 12. dxe5 {[%clk 0:02:54]}  Nd5 {[%clk 0:02:31]} 13. Rd1 {[%clk 0:02:51]}  Qb6 {[%clk 0:02:11]} 14. Nd2 {[%clk 0:02:46]}  Bc5 {[%clk 0:01:54]} 15. Ne4 {[%clk 0:02:39]}  O-O {[%clk 0:01:46]} 16. Nxc5 {[%clk 0:02:31]}  Qxc5 {[%clk 0:01:47]} 17. e4 {[%clk 0:02:31]}  b3 {[%clk 0:01:46]} 18. Qe2 {[%clk 0:02:29]}  c3 {[%clk 0:01:44]} 19. Qg4 {[%clk 0:02:22]}  c2 {[%clk 0:01:31]} 20. Bh6 {[%clk 0:02:17]}  cxd1=Q+ {[%clk 0:01:25]} 21. Rxd1 {[%clk 0:02:18]}  g6 {[%clk 0:01:25]} 22. exd5 {[%clk 0:02:18]}  cxd5 {[%clk 0:01:24]} 23. Qg5 {[%clk 0:02:07]}  Qc2 {[%clk 0:01:06]} 24. Rc1 {[%clk 0:01:58]}  Qf5 {[%clk 0:01:03]} 25. Qe3 {[%clk 0:01:50]}  Rfc8 {[%clk 0:01:01]} 26. Re1 {[%clk 0:01:44]}  Rc2 {[%clk 0:00:59]} 27. h3 {[%clk 0:01:31]}  Rxb2 {[%clk 0:00:37]} 28. g4 {[%clk 0:01:29]}  Qxf2+ {[%clk 0:00:37]} 29. Qxf2 {[%clk 0:01:28]}  Rxf2 {[%clk 0:00:38]} 30. Kxf2 {[%clk 0:01:28]}  Rc8 {[%clk 0:00:38]} 31. Be3 {[%clk 0:01:13]}  Rc2+ {[%clk 0:00:38]} 32. Kg3 {[%clk 0:01:10]}  Bd3 {[%clk 0:00:34]} 33. Bf1 {[%clk 0:00:54]}  Be4 {[%clk 0:00:33]} 34. Bd4 {[%clk 0:00:41]}  b2 {[%clk 0:00:32]} 35. Bxb2 {[%clk 0:00:29]}  Rxb2 {[%clk 0:00:32]} 36. Rc1 {[%clk 0:00:29]}  g5 {[%clk 0:00:30]} 37. Rc5 {[%clk 0:00:26]}  Rb3+ {[%clk 0:00:28]} 38. Kh2 {[%clk 0:00:25]}  Ra3 {[%clk 0:00:26]} 39. Rxa5 {[%clk 0:00:25]}  Ra2+ {[%clk 0:00:27]} 40. Kg3 {[%clk 0:00:24]}  d4 {[%clk 0:00:26]} 41. Rc5 {[%clk 0:00:07]}  Rxa4 {[%clk 0:00:23]} 42. Rc4 {[%clk 0:00:08]}  Ra3+ {[%clk 0:00:20]} 43. Kf2 {[%clk 0:00:08]}  Ra2+ {[%clk 0:00:20]} 44. Kg3 {[%clk 0:00:07]}  Ra5 {[%clk 0:00:18]} 45. Rxd4 {[%clk 0:00:07]}  Rxe5 {[%clk 0:00:19]} 46. Rd8+ {[%clk 0:00:07]}  Kg7 {[%clk 0:00:19]} 47. Rd4 {[%clk 0:00:08]}  Bg6 {[%clk 0:00:19]} 48. Bc4 {[%clk 0:00:07]}  h5 {[%clk 0:00:19]} 49. Rd7 {[%clk 0:00:05]}  h4+ {[%clk 0:00:18]} 50. Kf2 {[%clk 0:00:04]}  Re4 {[%clk 0:00:18]} 51. Bd3 {[%clk 0:00:04]}  Rf4+ {[%clk 0:00:18]} 52. Kg2 {[%clk 0:00:04]}  Bxd3 {[%clk 0:00:16]} 53. Rxd3 {[%clk 0:00:05]}  e5 {[%clk 0:00:17]} 54. Re3 {[%clk 0:00:04]}  e4 {[%clk 0:00:16]} 55. Re2 {[%clk 0:00:03]}  Kf6 {[%clk 0:00:16]} 56. Re3 {[%clk 0:00:04]}  Ke5 {[%clk 0:00:17]} 57. Re2 {[%clk 0:00:05]}  Rf3 {[%clk 0:00:17]} 58. Re1 {[%clk 0:00:05]}  Kf4 {[%clk 0:00:18]} 59. Kh2 {[%clk 0:00:05]}  Rf2+ {[%clk 0:00:17]} 60. Kg1 {[%clk 0:00:04]}  e3 {[%clk 0:00:18]} 61. Ra1 {[%clk 0:00:03]}  Kg3 {[%clk 0:00:17]} 62. Ra3 {[%clk 0:00:03]}  Rf3 {[%clk 0:00:17]} 63. Ra2 {[%clk 0:00:03]}  Kxh3 {[%clk 0:00:17]} 64. Rh2+ {[%clk 0:00:03]}  Kxg4 {[%clk 0:00:17]} 65. Rg2+ {[%clk 0:00:04]}  Rg3 {[%clk 0:00:17]} 66. Kf1 {[%clk 0:00:03]}  Rxg2 {[%clk 0:00:16]} 67. Kxg2 {[%clk 0:00:03]}  h3+ {[%clk 0:00:16]} 68. Kh2 {[%clk 0:00:04]}  e2 {[%clk 0:00:16]} 69. Kh1 {[%clk 0:00:04]}  e1=Q+ {[%clk 0:00:16]} 70. Kh2 {[%clk 0:00:05]}  Qf2+ {[%clk 0:00:17]} 71. Kh1 {[%clk 0:00:04]}  Qg2# {[%clk 0:00:18]} 0-1


[Site "https://www.chess.com"]

[Event "Titled Tuesday Blitz December 06 Late 2022"]
[White "Ehlvest, Jaan"]
[Black "Dzierzak, Radoslaw"]
[WhiteFideId "4500016"]
[BlackFideId "1161407"]
[WhiteElo "2430"]
[BlackElo "2111"]
[Result "1-0"]
[Round "03"]
[TimeControl "180+1"]
[Date "2022.12.07"]
[WhiteClock "0:00:41"]
[BlackClock "0:00:05"]

1. e4 {[%clk 0:02:55]}  c6 {[%clk 0:02:59]} 2. d4 {[%clk 0:02:54]}  d5 {[%clk 0:03:00]} 3. exd5 {[%clk 0:02:54]}  cxd5 {[%clk 0:03:01]} 4. Bd3 {[%clk 0:02:53]}  Nc6 {[%clk 0:03:01]} 5. c3 {[%clk 0:02:53]}  Nf6 {[%clk 0:03:00]} 6. h3 {[%clk 0:02:53]}  g6 {[%clk 0:02:59]} 7. Nf3 {[%clk 0:02:52]}  Bg7 {[%clk 0:02:59]} 8. O-O {[%clk 0:02:52]}  O-O {[%clk 0:02:59]} 9. Re1 {[%clk 0:02:52]}  Bf5 {[%clk 0:02:59]} 10. Bxf5 {[%clk 0:02:42]}  gxf5 {[%clk 0:03:00]} 11. Nbd2 {[%clk 0:02:41]}  e6 {[%clk 0:03:00]} 12. Ne5 {[%clk 0:02:40]}  Ne4 {[%clk 0:03:00]} 13. Nd3 {[%clk 0:02:38]}  Kh8 {[%clk 0:02:55]} 14. Nf3 {[%clk 0:02:37]}  Rg8 {[%clk 0:02:45]} 15. Bf4 {[%clk 0:02:36]}  Bf6 {[%clk 0:02:37]} 16. Nfe5 {[%clk 0:02:19]}  Nxe5 {[%clk 0:02:34]} 17. Nxe5 {[%clk 0:02:18]}  Bxe5 {[%clk 0:02:29]} 18. Bxe5+ {[%clk 0:02:13]}  f6 {[%clk 0:02:28]} 19. Bh2 {[%clk 0:01:58]}  Qd7 {[%clk 0:02:17]} 20. f3 {[%clk 0:01:55]}  Ng5 {[%clk 0:02:12]} 21. Kh1 {[%clk 0:01:52]}  Rg6 {[%clk 0:02:06]} 22. Qd2 {[%clk 0:01:50]}  Nf7 {[%clk 0:01:42]} 23. Re2 {[%clk 0:01:49]}  Rag8 {[%clk 0:01:39]} 24. Rae1 {[%clk 0:01:48]}  Nd8 {[%clk 0:01:37]} 25. b3 {[%clk 0:01:43]}  b5 {[%clk 0:01:28]} 26. Qd3 {[%clk 0:01:43]}  a6 {[%clk 0:01:28]} 27. c4 {[%clk 0:01:34]}  bxc4 {[%clk 0:01:20]} 28. bxc4 {[%clk 0:01:34]}  dxc4 {[%clk 0:01:18]} 29. Qxc4 {[%clk 0:01:34]}  Qb7 {[%clk 0:01:16]} 30. Bd6 {[%clk 0:01:13]}  R6g7 {[%clk 0:01:04]} 31. Rc2 {[%clk 0:01:04]}  Rd7 {[%clk 0:00:54]} 32. Bc7 {[%clk 0:01:01]}  Nf7 {[%clk 0:00:34]} 33. Rxe6 {[%clk 0:00:59]}  Ng5 {[%clk 0:00:34]} 34. Rb6 {[%clk 0:00:50]}  Qa8 {[%clk 0:00:14]} 35. Rxf6 {[%clk 0:00:49]}  Nxf3 {[%clk 0:00:07]} 36. Rxf5 {[%clk 0:00:46]}  Nh4 {[%clk 0:00:05]} 37. Be5+ {[%clk 0:00:44]}  Rdg7 {[%clk 0:00:05]} 38. Rg5 {[%clk 0:00:41]} 1-0


[Site "https://www.chess.com"]

[Event "Titled Tuesday Blitz December 06 Late 2022"]
[White "Espinosa, Pedro"]
[Black "Rama, Tejas"]
[WhiteFideId "30921066"]
[BlackFideId "30907381"]
[WhiteElo "2016"]
[BlackElo "2089"]
[Result "1-0"]
[Round "03"]
[TimeControl "180+1"]
[Date "2022.12.07"]
[WhiteClock "0:00:22"]
[BlackClock "0:00:08"]

1. d4 {[%clk 0:03:00]}  Nf6 {[%clk 0:02:59]} 2. c4 {[%clk 0:03:00]}  e6 {[%clk 0:03:00]} 3. Nf3 {[%clk 0:03:00]}  d5 {[%clk 0:03:00]} 4. Nc3 {[%clk 0:03:01]}  c5 {[%clk 0:03:00]} 5. cxd5 {[%clk 0:03:00]}  Nxd5 {[%clk 0:03:01]} 6. e4 {[%clk 0:03:00]}  Nxc3 {[%clk 0:03:02]} 7. bxc3 {[%clk 0:03:01]}  cxd4 {[%clk 0:03:02]} 8. cxd4 {[%clk 0:03:02]}  Bb4+ {[%clk 0:03:02]} 9. Bd2 {[%clk 0:03:02]}  Bxd2+ {[%clk 0:03:03]} 10. Qxd2 {[%clk 0:03:03]}  O-O {[%clk 0:03:03]} 11. Bc4 {[%clk 0:03:04]}  Nd7 {[%clk 0:03:04]} 12. O-O {[%clk 0:03:04]}  b6 {[%clk 0:03:04]} 13. Rfe1 {[%clk 0:03:02]}  Bb7 {[%clk 0:03:05]} 14. Rad1 {[%clk 0:03:01]}  Rc8 {[%clk 0:03:05]} 15. Bb3 {[%clk 0:03:01]}  h6 {[%clk 0:03:05]} 16. d5 {[%clk 0:02:50]}  Nc5 {[%clk 0:02:43]} 17. dxe6 {[%clk 0:02:45]}  fxe6 {[%clk 0:02:33]} 18. Nd4 {[%clk 0:02:38]}  Kh8 {[%clk 0:01:48]} 19. Nxe6 {[%clk 0:02:08]}  Qxd2 {[%clk 0:01:37]} 20. Rxd2 {[%clk 0:02:07]}  Nxe4 {[%clk 0:01:26]} 21. Rd7 {[%clk 0:01:49]}  Nc5 {[%clk 0:00:24]} 22. Nxc5 {[%clk 0:01:42]}  Bc6 {[%clk 0:00:19]} 23. Rxa7 {[%clk 0:01:36]}  bxc5 {[%clk 0:00:19]} 24. f3 {[%clk 0:01:33]}  c4 {[%clk 0:00:18]} 25. Bxc4 {[%clk 0:01:29]}  Bxf3 {[%clk 0:00:17]} 26. Be6 {[%clk 0:01:26]}  Ra8 {[%clk 0:00:15]} 27. Rxa8 {[%clk 0:01:20]}  Bxa8 {[%clk 0:00:16]} 28. Bb3 {[%clk 0:01:18]}  h5 {[%clk 0:00:12]} 29. h4 {[%clk 0:01:16]}  Kh7 {[%clk 0:00:12]} 30. Re5 {[%clk 0:01:05]}  Kh6 {[%clk 0:00:11]} 31. Bd5 {[%clk 0:00:56]}  Bxd5 {[%clk 0:00:10]} 32. Rxd5 {[%clk 0:00:56]}  Ra8 {[%clk 0:00:10]} 33. Rd6+ {[%clk 0:00:56]}  g6 {[%clk 0:00:10]} 34. Rd2 {[%clk 0:00:55]}  g5 {[%clk 0:00:07]} 35. hxg5+ {[%clk 0:00:52]}  Kxg5 {[%clk 0:00:08]} 36. Kh2 {[%clk 0:00:52]}  Kg4 {[%clk 0:00:07]} 37. Rd4+ {[%clk 0:00:50]}  Kg5 {[%clk 0:00:07]} 38. a4 {[%clk 0:00:51]}  Ra5 {[%clk 0:00:07]} 39. Kh3 {[%clk 0:00:50]}  h4 {[%clk 0:00:05]} 40. Rxh4 {[%clk 0:00:43]}  Kf6 {[%clk 0:00:03]} 41. Rb4 {[%clk 0:00:42]}  Kg6 {[%clk 0:00:03]} 42. g4 {[%clk 0:00:42]}  Kg7 {[%clk 0:00:02]} 43. Kh4 {[%clk 0:00:42]}  Kg6 {[%clk 0:00:03]} 44. Kg3 {[%clk 0:00:35]}  Kg7 {[%clk 0:00:02]} 45. Kf4 {[%clk 0:00:35]}  Kf6 {[%clk 0:00:02]} 46. Rc4 {[%clk 0:00:26]}  Kg6 {[%clk 0:00:02]} 47. Rb4 {[%clk 0:00:19]}  Kf6 {[%clk 0:00:03]} 48. Ke3 {[%clk 0:00:19]}  Kg6 {[%clk 0:00:04]} 49. Kd3 {[%clk 0:00:20]}  Ra8 {[%clk 0:00:03]} 50. Kc3 {[%clk 0:00:20]}  Kg5 {[%clk 0:00:04]} 51. Kb3 {[%clk 0:00:19]}  Ra6 {[%clk 0:00:03]} 52. Rc4 {[%clk 0:00:19]}  Ra8 {[%clk 0:00:04]} 53. Kb4 {[%clk 0:00:18]}  Rb8+ {[%clk 0:00:04]} 54. Kc5 {[%clk 0:00:18]}  Rc8+ {[%clk 0:00:04]} 55. Kd5 {[%clk 0:00:19]}  Rd8+ {[%clk 0:00:05]} 56. Kc6 {[%clk 0:00:17]}  Rc8+ {[%clk 0:00:05]} 57. Kb5 {[%clk 0:00:18]}  Rb8+ {[%clk 0:00:06]} 58. Ka5 {[%clk 0:00:18]}  Ra8+ {[%clk 0:00:06]} 59. Kb4 {[%clk 0:00:19]}  Rb8+ {[%clk 0:00:06]} 60. Ka3 {[%clk 0:00:19]}  Ra8 {[%clk 0:00:07]} 61. Rb4 {[%clk 0:00:20]}  Ra7 {[%clk 0:00:06]} 62. Kb3 {[%clk 0:00:20]}  Kg6 {[%clk 0:00:06]} 63. Kc3 {[%clk 0:00:20]}  Kg5 {[%clk 0:00:07]} 64. Rc4 {[%clk 0:00:20]}  Kh4 {[%clk 0:00:07]} 65. Kd3 {[%clk 0:00:20]}  Rd7+ {[%clk 0:00:07]} 66. Ke4 {[%clk 0:00:21]}  Kxg4 {[%clk 0:00:06]} 67. Ke5+ {[%clk 0:00:20]}  Kg5 {[%clk 0:00:06]} 68. a5 {[%clk 0:00:20]}  Ra7 {[%clk 0:00:05]} 69. Ra4 {[%clk 0:00:20]}  Kg6 {[%clk 0:00:06]} 70. Ke6 {[%clk 0:00:20]}  Ra6+ {[%clk 0:00:05]} 71. Kd7 {[%clk 0:00:20]}  Kf6 {[%clk 0:00:06]} 72. Kc7 {[%clk 0:00:20]}  Ke5 {[%clk 0:00:06]} 73. Kb7 {[%clk 0:00:21]}  Rg6 {[%clk 0:00:06]} 74. a6 {[%clk 0:00:21]}  Re6 {[%clk 0:00:07]} 75. a7 {[%clk 0:00:21]}  Re7+ {[%clk 0:00:07]} 76. Kb6 {[%clk 0:00:22]}  Re8 {[%clk 0:00:07]} 77. a8=Q {[%clk 0:00:22]}  Rxa8 {[%clk 0:00:08]} 78. Rxa8 {[%clk 0:00:22]} 1-0


[Site "https://www.chess.com"]

[Event "Titled Tuesday Blitz December 06 Late 2022"]
[White "Fajdetic, Hrvoje"]
[Black "Rosenberg, Evan S"]
[WhiteFideId "14501945"]
[BlackFideId "2019299"]
[WhiteElo "2154"]
[BlackElo "2406"]
[Result "0-1"]
[Round "03"]
[TimeControl "180+1"]
[Date "2022.12.07"]
[WhiteClock "0:00:10"]
[BlackClock "0:00:20"]

1. b3 {[%clk 0:03:00]}  e5 {[%clk 0:02:59]} 2. Bb2 {[%clk 0:03:00]}  Nc6 {[%clk 0:02:59]} 3. g3 {[%clk 0:03:01]}  d5 {[%clk 0:02:58]} 4. Bg2 {[%clk 0:03:01]}  Nf6 {[%clk 0:02:51]} 5. d3 {[%clk 0:03:02]}  Bd6 {[%clk 0:02:46]} 6. Nd2 {[%clk 0:03:02]}  h5 {[%clk 0:02:40]} 7. h4 {[%clk 0:03:01]}  Be6 {[%clk 0:02:38]} 8. e4 {[%clk 0:03:01]}  dxe4 {[%clk 0:02:32]} 9. dxe4 {[%clk 0:02:57]}  Ng4 {[%clk 0:02:20]} 10. Nh3 {[%clk 0:02:55]}  Bc5 {[%clk 0:02:12]} 11. a3 {[%clk 0:02:50]}  Bd4 {[%clk 0:02:04]} 12. c3 {[%clk 0:02:48]}  Bxf2+ {[%clk 0:01:57]} 13. Nxf2 {[%clk 0:02:48]}  Ne3 {[%clk 0:01:57]} 14. Qf3 {[%clk 0:02:45]}  Nc2+ {[%clk 0:01:52]} 15. Ke2 {[%clk 0:02:40]}  Nxa1 {[%clk 0:01:32]} 16. Rxa1 {[%clk 0:02:41]}  Qd7 {[%clk 0:01:21]} 17. Rd1 {[%clk 0:02:37]}  O-O-O {[%clk 0:01:21]} 18. Nc4 {[%clk 0:02:25]}  Bxc4+ {[%clk 0:01:10]} 19. bxc4 {[%clk 0:02:23]}  Qe7 {[%clk 0:01:03]} 20. Rd5 {[%clk 0:02:16]}  Kb8 {[%clk 0:01:00]} 21. Nd3 {[%clk 0:02:10]}  f6 {[%clk 0:00:59]} 22. Qe3 {[%clk 0:02:01]}  b6 {[%clk 0:01:00]} 23. c5 {[%clk 0:01:58]}  Na5 {[%clk 0:00:59]} 24. cxb6 {[%clk 0:01:12]}  axb6 {[%clk 0:00:55]} 25. Nb4 {[%clk 0:00:58]}  Kb7 {[%clk 0:00:50]} 26. Qd3 {[%clk 0:00:56]}  Ra8 {[%clk 0:00:45]} 27. Bh3 {[%clk 0:00:32]}  Rhd8 {[%clk 0:00:38]} 28. Bd7 {[%clk 0:00:31]}  c6 {[%clk 0:00:35]} 29. Rd6 {[%clk 0:00:30]}  Kc7 {[%clk 0:00:30]} 30. Nxc6 {[%clk 0:00:13]}  Qxd6 {[%clk 0:00:22]} 31. Nxd8 {[%clk 0:00:10]}  Qxd3+ {[%clk 0:00:21]} 32. Kxd3 {[%clk 0:00:10]}  Rxd8 {[%clk 0:00:20]} 0-1


[Site "https://www.chess.com"]

[Event "Titled Tuesday Blitz December 06 Late 2022"]
[White "Ferriz Barrios, Andres"]
[Black "Aguilar, Juan"]
[WhiteFideId "5104467"]
[BlackFideId "3800091"]
[WhiteElo "2222"]
[BlackElo "2542"]
[Result "0-1"]
[Round "03"]
[TimeControl "180+1"]
[Date "2022.12.07"]
[WhiteClock "0:00:16"]
[BlackClock "0:00:18"]

1. d4 {[%clk 0:03:00]}  Nf6 {[%clk 0:02:59]} 2. Nf3 {[%clk 0:02:59]}  g6 {[%clk 0:02:59]} 3. Nc3 {[%clk 0:02:59]}  d5 {[%clk 0:02:57]} 4. Bf4 {[%clk 0:02:59]}  a6 {[%clk 0:02:55]} 5. Qd2 {[%clk 0:03:00]}  Bg7 {[%clk 0:02:53]} 6. Ne5 {[%clk 0:03:00]}  O-O {[%clk 0:02:50]} 7. f3 {[%clk 0:02:56]}  c5 {[%clk 0:02:47]} 8. e3 {[%clk 0:02:56]}  Nc6 {[%clk 0:02:46]} 9. h4 {[%clk 0:02:55]}  Nh5 {[%clk 0:02:40]} 10. Nxc6 {[%clk 0:02:53]}  bxc6 {[%clk 0:02:39]} 11. Bh2 {[%clk 0:02:53]}  cxd4 {[%clk 0:02:35]} 12. exd4 {[%clk 0:02:51]}  Qb6 {[%clk 0:02:30]} 13. g4 {[%clk 0:02:46]}  Bxd4 {[%clk 0:01:59]} 14. gxh5 {[%clk 0:02:43]}  Be3 {[%clk 0:01:58]} 15. Qd3 {[%clk 0:02:38]}  Bf5 {[%clk 0:01:53]} 16. Na4 {[%clk 0:02:25]}  Qa7 {[%clk 0:01:47]} 17. Qa3 {[%clk 0:02:12]}  e5 {[%clk 0:01:30]} 18. Bd3 {[%clk 0:02:06]}  e4 {[%clk 0:01:27]} 19. fxe4 {[%clk 0:02:04]}  dxe4 {[%clk 0:01:27]} 20. Be2 {[%clk 0:01:59]}  Rad8 {[%clk 0:01:24]} 21. c4 {[%clk 0:01:40]}  Qd4 {[%clk 0:01:03]} 22. Bg3 {[%clk 0:01:25]}  Qd2+ {[%clk 0:00:42]} 23. Kf1 {[%clk 0:01:24]}  Ba7 {[%clk 0:00:35]} 24. Qc3 {[%clk 0:01:20]}  Qh6 {[%clk 0:00:33]} 25. Kg2 {[%clk 0:01:11]}  e3 {[%clk 0:00:32]} 26. Rhd1 {[%clk 0:01:07]}  Rd2 {[%clk 0:00:31]} 27. Rxd2 {[%clk 0:01:02]}  exd2 {[%clk 0:00:32]} 28. Rd1 {[%clk 0:01:02]}  Rd8 {[%clk 0:00:32]} 29. Bf3 {[%clk 0:00:55]}  Rd3 {[%clk 0:00:27]} 30. Qf6 {[%clk 0:00:39]}  Qe3 {[%clk 0:00:22]} 31. Rf1 {[%clk 0:00:20]}  d1=Q {[%clk 0:00:19]} 32. Rxd1 {[%clk 0:00:15]}  Qxf3+ {[%clk 0:00:18]} 33. Kh2 {[%clk 0:00:15]}  Qxg3+ {[%clk 0:00:18]} 34. Kh1 {[%clk 0:00:16]}  Rxd1# {[%clk 0:00:18]} 0-1


[Site "https://www.chess.com"]